Cogmind - Beta 13 @@@ ROGUE MODE // 2024.04.14 @ 20:27:02 Player: Thaleia Result: Self-destructed Performance ------------- Evolutions (2) 1000 Regions Visited (3) 600 Robots Destroyed (8) 40 Value Destroyed (233) 233 Prototype IDs (0) 0 Alien Tech Used (0) 0 Bonus (0) 0 TOTAL SCORE: 1873 Bonus ------- None Cogmind --------- Core Integrity 465/550 Matter 240/450 Energy 200/200 System Corruption 0% Temperature Cool (0) Movement Core (300) Ox5 Location -8/Materials Parts ------- > --- POWER (1) -------- Subdweller Power Source > --- PROPULSION (3) --- (None) > --- UTILITY (5) ------ Medium Storage Unit Compact Matter Pod Visual Processing Unit Improved Sensor Array > --- WEAPON (2) ------- (None) > --- INVENTORY (10) --- Ion Engine Ion Engine Light Treads Improved Heat Sink Scrap Shield Field Recycling Unit (0) Battle Cannon Grenade Launcher Peak State ------------ > --- POWER ------------ Subdweller Power Source > --- PROPULSION ------- Aluminum Leg Aluminum Leg > --- UTILITY ---------- Medium Storage Unit Compact Matter Pod Visual Processing Unit Improved Sensor Array > --- WEAPON ----------- Assault Rifle Light Assault Rifle > --- INVENTORY -------- Ion Engine Ion Engine Light Treads Improved Heat Sink Scrap Shield Battle Cannon Grenade Launcher [Rating: 16] Favorites ----------- Power Ion Engine Engine Ion Engine Propulsion Light Treads Treads Light Treads Leg Aluminum Leg Utility Medium Storage Unit Device Improved Sensor Array Storage Medium Storage Unit Processor Visual Processing Unit Weapon Assault Rifle Ballistic Gun Assault Rifle Build | -11 -10 -10 -8 ------- Run | Yrd Mat Sub Mat Slots Evolved 4 | . . . 4 Power . | . . . . Propulsion 1 | . . . 1 Utility 3 | . . . 3 Weapon . | . . . . Parts Attached 14 | 6 2 . 6 Power 3 | 1 1 . 1 Engine 3 | 1 1 . 1 Core . | . . . . Reactor . | . . . . Propulsion 4 | 2 . . 2 Treads 2 | 2 . . . Leg 2 | . . . 2 Wheel . | . . . . Hover . | . . . . Flight . | . . . . Utility 5 | 1 1 . 3 Device 1 | . . . 1 Storage 3 | 1 1 . 1 Processor 1 | . . . 1 Hackware . | . . . . Protection . | . . . . Artifact . | . . . . Weapon 2 | 2 . . . Energy Gun . | . . . . Energy Cannon . | . . . . Ballistic Gun 2 | 2 . . . Ballistic Cannon . | . . . . Launcher . | . . . . Special Weapon . | . . . . Impact Weapon . | . . . . Slashing Weapon . | . . . . Piercing Weapon . | . . . . Special Melee Weapon . | . . . . Unidentified Prototypes . | . . . . Parts Lost 4 | . . . 4 Power . | . . . . Propulsion 2 | . . . 2 Utility . | . . . . Weapon 2 | . . . 2 Highest Loss Streak 4 | . . . 4 To Critical Strikes . | . . . . Average Slot Usage (%) 87 | . 94 85 66 Engine 13 | . 14 14 9 Treads 23 | . 28 28 5 Leg 1 | . . . 11 Storage 19 | . 22 14 16 Ballistic Gun 25 | . 28 28 15 Naked Turns . | . . . . Heaviest Build 23 | 13 23 18 20 Greatest Support 40 | 40 40 40 40 Greatest Overweight (x) 5 | . . . 5 Average Overweight (x) . | . . . . Largest Inventory Capacity 10 | 8 10 10 10 Average Capacity 9 | 7 9 10 10 Most Carried 10 | 3 6 10 10 Average Carried 5 | 1 4 8 8 Final Capacity 10 | 8 10 10 10 Final Carried 10 | 3 6 10 9 Class Distribution -------------------- 100% | Mutant Dominant Class ---------------- Mutant | -10/Materials Mutant | -10/Subcaves Mutant | -8/Materials Resources | -11 -10 -10 -8 ----------- Run | Yrd Mat Sub Mat Matter Collected 424 | 179 241 4 . Remotely . | . . . . Salvage Created 337 | . 337 . . Parts 20 | . 20 . . Haulers Intercepted 1 | . 1 . . Recyclers Shooed . | . . . . Parts Field Recycled . | . . . . Retrieved Matter . | . . . . Parts Self-Destructed 5 | . . 5 . Prevented . | . . . . Kills | -11 -10 -10 -8 ------- Run | Yrd Mat Sub Mat Combat Hostiles Destroyed 6 | . 6 . . Guns 6 | . 6 . . Classes Destroyed 3 | . 3 . . Worker 1 | . 1 . . Hauler 1 | . 1 . . Grunt 6 | . 6 . . Best Kill Streak 3 | . 3 . . Combat Bots Only 2 | . 2 . . Max Kills in Single Turn 1 | . 1 . . Gunslinging . | . . . . Exploded . | . . . . Melee . | . . . . Uniques/NPCs Destroyed . | . . . . Combat | -11 -10 -10 -8 -------- Run | Yrd Mat Sub Mat Hostile Shots Fired 101 | . 43 1 57 Missed 28 | . 10 1 17 Damage Taken 881 | . 407 30 444 Core 123 | . 31 7 85 Absorbed by Shields . | . . . . Core Remaining (%) 92 | 100 . 84 . Volleys Fired 46 | . 35 1 10 Largest 2 | . 2 2 2 Hottest 40 | . 40 40 40 Shots Fired 87 | . 70 2 15 Gun 87 | . 70 2 15 Cannon . | . . . . Launcher . | . . . . Special . | . . . . Kinetic 87 | . 70 2 15 Thermal . | . . . . Explosive . | . . . . Electromagnetic . | . . . . Robot Hit Streak 7 | . 5 . 7 Robot Miss Streak 5 | . 3 . 5 Penetration Max . | . . . . Secondary Targets 1 | . 1 . . Max Gunslinging Chain 1 | . 1 . . Shots Hit Robots 45 | . 37 . 8 Core Hits 22 | . 19 1 2 Critical Kills . | . . . . Critical Parts Destroyed . | . . . . Critical Strikes . | . . . . Melee Attacks . | . . . . Impact . | . . . . Slashing . | . . . . Piercing . | . . . . Sneak Attacks . | . . . . Combat Hostiles . | . . . . Follow-up Attacks . | . . . . Damage Inflicted 499 | . 414 6 79 Guns 495 | . 414 6 75 Cannons . | . . . . Explosions . | . . . . Melee . | . . . . Ramming 4 | . . . 4 Kinetic 495 | . 414 6 75 Thermal . | . . . . Explosive . | . . . . Electromagnetic . | . . . . Impact . | . . . . Slashing . | . . . . Piercing . | . . . . Highest Corruption . | . . . . Average Corruption . | . . . . Corruption Purged . | . . . . Corruption Blocked . | . . . . Overload Shots . | . . . . Overflow Damage . | . . . . Projectiles . | . . . . Explosions . | . . . . Melee . | . . . . Knockbacks . | . . . . Impact . | . . . . Kinetic . | . . . . Secondary . | . . . . Self-Inflicted Damage . | . . . . Shots . | . . . . Rammed 1 | . . . 1 Targets Rammed 2 | . . . 2 Kicked 1 | . . . 1 Crushed . | . . . . Highest Temperature 28 | . 28 . 3 Average Temperature 8 | . 9 . 2 Received Heat Transfer 360 | . 243 . 117 Siege Activations . | . . . . Robots Corrupted . | . . . . Combat Hostiles . | . . . . Parts Fried . | . . . . Impact Corruptions . | . . . . Robots Melted . | . . . . Combat Hostiles . | . . . . Parts Melted . | . . . . Heat Transferred . | . . . . Parts Sabotaged . | . . . . Parts Stolen . | . . . . Parts Stripped . | . . . . Power Chain Reactions . | . . . . Alert | -11 -10 -10 -8 ------- Run | Yrd Mat Sub Mat Peak Influence 140 | . 140 . 41 Initial 11 | . . . 11 Average 26 | . 32 . 20 Maximum Alert Level . | . . . . Low Security (%) 100 | 100 100 . 100 Level 1 . | . . . . Level 2 . | . . . . Level 3 . | . . . . Level 4 . | . . . . Level 5 . | . . . . High Security . | . . . . Max Security . | . . . . Squads Dispatched 3 | . 2 . 1 Investigation 1 | . 1 . . Extermination . | . . . . Reinforcement 2 | . 1 . 1 Assault . | . . . . Garrison . | . . . . Intercept . | . . . . Searches Triggered . | . . . . Construction Impeded . | . . . . Haulers Reinforced . | . . . . Active Scanning Responses . | . . . . Cargo Convoy Interrupts . | . . . . Stealth | -11 -10 -10 -8 --------- Run | Yrd Mat Sub Mat Distress Signals 1 | . 1 . . Communications Jammed . | . . . . Distress Signals . | . . . . Times Spotted 19 | . 12 1 6 Peak Tracking Total 4 | . 2 1 4 Tactical Retreats 1 | . 1 . . Traps | -11 -10 -10 -8 ------- Run | Yrd Mat Sub Mat Traps Triggered 1 | . . 1 . Indirectly . | . . . . Trap Hack Attempts . | . . . . Triggered . | . . . . Disarmed . | . . . . Reprogrammed . | . . . . Reused . | . . . . Traps Extracted . | . . . . Installed . | . . . . Triggered . | . . . . Machines | -11 -10 -10 -8 ---------- Run | Yrd Mat Sub Mat Machines Disabled . | . . . . Max in Single Turn . | . . . . Machines Repaired . | . . . . Machines Dismantled . | . . . . Machines Sabotaged . | . . . . Overloaded Fab Kills . | . . . . Hacking | -11 -10 -10 -8 --------- Run | Yrd Mat Sub Mat Machines Accessed 6 | . 4 . 2 Terminals 3 | . 3 . . Fabricators . | . . . . Repair Stations 1 | . . . 1 Recycling Units 1 | . 1 . . Scanalyzers 1 | . . . 1 Garrison Access . | . . . . Total Hacks 15 | . 11 . 4 Successful 7 | . 4 . 3 Failed 8 | . 7 . 1 Catastrophic 1 | . 1 . . Database Lockouts . | . . . . Manual 2 | . 2 . . Terminals 8 | . 8 . . Fabricators . | . . . . Repair Stations 2 | . . . 2 Recycling Units 3 | . 3 . . Scanalyzers 2 | . . . 2 Garrison Access . | . . . . Terminal Hacks 3 | . 3 . . Dispatch Records 1 | . 1 . . Transport Status 1 | . 1 . . Hauler Manifests 1 | . 1 . . Fabricator Hacks . | . . . . Repair Station Hacks 1 | . . . 1 Scan Component 1 | . . . 1 Recycling Unit Hacks 1 | . 1 . . Retrieve Components 1 | . 1 . . Scanalyzer 2 | . . . 2 Insert Component 1 | . . . 1 Analyze 1 | . . . 1 Garrison Access Hacks . | . . . . Unauthorized Hacks . | . . . . Terminals . | . . . . Fabricators . | . . . . Repair Stations . | . . . . Recycling Units . | . . . . Scanalyzers . | . . . . Garrison Access . | . . . . Data Cores Recovered . | . . . . Used . | . . . . Hacking Detections 6 | . 4 . 2 Full Trace Events 1 | . 1 . . Feedback Events . | . . . . Feedback Blocked . | . . . . Robot Schematics Acquired . | . . . . Robots Built . | . . . . Authchips . | . . . . Time . | . . . . Total Robot Build Rating . | . . . . Part Schematics Acquired 1 | . . . 1 Parts Built . | . . . . Authchips . | . . . . Time . | . . . . Total Part Build Rating . | . . . . Parts Repaired . | . . . . Time . | . . . . Parts Recycled . | . . . . Recycled Matter . | . . . . Retrieved Matter . | . . . . Retrieved Components . | . . . . Parts Scanalyzed 1 | . . . 1 Part Schematics Acquired 1 | . . . 1 Parts Damaged . | . . . . Bothacking | -11 -10 -10 -8 ------------ Run | Yrd Mat Sub Mat Used RIF Installer . | . . . . Robots Hacked . | . . . . Non-combat . | . . . . Combat . | . . . . Robot Hacks Applied . | . . . . Relay Couplers Released . | . . . . Fabnet Peak Effective % . | . . . . Robots Rewired . | . . . . Allies Hacked . | . . . . Hacks Repelled . | . . . . Allies | -11 -10 -10 -8 -------- Run | Yrd Mat Sub Mat Total Allies . | . . . . Largest Group . | . . . . Highest-Rated Group . | . . . . Highest-Rated Ally . | . . . . Total Orders . | . . . . Ally Attacks . | . . . . Total Damage . | . . . . Kills . | . . . . Allies Corrupted . | . . . . Allies Melted . | . . . . Intel | -11 -10 -10 -8 ------- Run | Yrd Mat Sub Mat Robot Analysis Total . | . . . . Derelict Logs Recovered . | . . . . Drone Launches . | . . . . Drone Recoveries . | . . . . Exploration | -11 -10 -10 -8 ------------- Run | Yrd Mat Sub Mat Turns Passed 1655 | 155 893 340 267 Spaces Moved 945 | 93 489 208 155 Core 11 | 4 . . 7 Treads 829 | 89 489 208 43 Legs 105 | . . . 105 Wheels . | . . . . Hover . | . . . . Flight . | . . . . Fastest Speed 50 | 50 160 160 120 Average Speed 156 | 155 160 160 140 Slowest Speed 300 | 160 160 160 300 Overloaded Moves . | . . . . Propulsion Burnouts . | . . . . Robots Hopped . | . . . . Cave-ins Triggered . | . . . . Exploration Rate (%) 18 | 5 51 6 13 Regions Visited 3 Branch Regions 1 Pre-discovered Areas . | . . . . Known Exits Taken . | . . . . Unknown Exits Taken 3 | 1 1 1 . Scrap Searched 3 | . . 3 . Spaces Dug . | . . . . Terrain Destroyed . | . . . . Melee . | . . . . Projectile . | . . . . AOE . | . . . . Terrain Rammed . | . . . . Walls Destroyed . | . . . . Machines Disabled . | . . . . Actions | -11 -10 -10 -8 --------- Run | Yrd Mat Sub Mat Total 1042 | 101 538 213 190 Wait 12 | . 3 . 9 Move 942 | 92 488 207 155 Hop . | . . . . Pick Up 16 | 3 5 4 4 Fast Attach 8 | 6 1 . 1 Attach 4 | . . . 4 Detach 2 | . 1 . 1 Swap 2 | . 1 . 1 Drop 8 | . 4 1 3 Fire 46 | . 35 1 10 Melee . | . . . . Ram 1 | . . . 1 Kick 1 | . . . 1 Crush . | . . . . Escape Stasis . | . . . . Rewire . | . . . . Trap . | . . . . Miscellaneous . | . . . . Route ------- -11/Scrapyard -10/Materials (discovered 3 exits: [*Mat x2] / [*Sub]) -10/Subcaves -8/Materials History --------- Turn | Location | Event 46 | -11/Scrapyard | Discovered new exit (range 15) 156 | -11/Scrapyard | Entered Materials 309 | -10/Materials | Build established: Mutant 611 | -10/Materials | Discovered new exit (range 16) 766 | -10/Materials | Discovered new exit (range 14) 1028 | -10/Materials | Discovered new exit (range 9) 1049 | -10/Materials | Entered Subcaves 1134 | -10/Subcaves | Discovered new exit (range 3) 1389 | -10/Subcaves | Entered Materials 1389 | -8/Materials | Evolved 4 slots: Propulsion x1, Utility x3 1656 | -8/Materials | Self-destructed Last Messages --------------- 01616_ Slug penetrates Wall. 01619_ Lgt. Assault Rifle destroyed. 01622_ Slug penetrates Wall. 01627_ Kicked U-05 Engineer. 01627_ Aluminum Leg destroyed. 01628_ Slug penetrates Wall. 01629_ Wall collapses. 01631_ Penetrated by Slug. 01631_ Aluminum Leg destroyed. 01636_ U-05 Engineer builds a Door. 01636_ Penetrated by Slug. 01636_ G-47 Trooper destroyed. 01636_ K-01 Serf collects debris. 01637_ R-06 Scavenger collects Aluminum Leg. 01638_ Slammed into W-25 Informer. 01639_ K-01 Serf collects debris. 01640_ R-06 Scavenger collects Particle Gun. 01641_ U-05 Engineer builds a Door. 01642_ K-01 Serf collects debris. 01655_ Slug penetrates Wall. Map ----- +----------------------------------------------------+ | ?????????????????????????????????????????????????? | | ?????????????????????????????????????????????????? | | ?????????????????????????????????????????????????? | | ?????????????????????????????????????????????????? | | ?????????????????????????????????????????????????? | | ?????????????????????????????????????????????????? | | ?????????????????????????????????????????????????? | | ?????????????????????????????????????????????????? | | ?????????????????????????????????????????????????? | | ?????????????????????????????????????????????????? | | ?????????????????????????????????????????????????? | | ????????????????????????????????? ?????????????? | | ????????????????????????????????? ?????????????? | | ????????????????????????????????# #????????????? | | ????????????????????????????????# #????????????? | | ????????????????????????????????# #????????????? | | ??????????????????????#########?# #????????????? | | ?????????????????????# #?# #????????????? | | ?????????????????????# """ #?#?? #????????????? | | ?????????????????????# """ #?# ? #??########??? | | ?????????????????????# """ #?# #??# #??? | | ?????????????????????# #?# #??# #??? | | ?????????????????????# """ #?# #??# " "" #??? | | ?????????????????????# """ #?# #??# "R"" #??? | | ?????????????????????# """ #?# #??# """ #??? | | ?????????????????????# @ #?# ^^#??# = #??? | | ?????????????????????######+##### #######+###### | | ????#???#####????????????# | | ????? ?#"""""????????#### * | | ?????? #""T""######??# | | ?????? #??# ?#######+######+###### | | ???????? #??# #?# # #?? | | ????????"""" #??#=?? #?# "S # """ #?? | | ????#[ ""T"" ! ###" #?# """ # """ #?? | | ????# ? #?# "" # """ #?? | | ? ! #?# # #?? | | ? #?# """ # #?? | | ? ###########?# """ ########?? | | ???#/##"""T"""## #???????????# """ #????????? | | ?????????###???# #???????????# #????????? | | ???????????????# #???????????##########????????? | | ???????????????# #?????????????????????????????? | | ???????????????# #?????????????????????????????? | | ???????????????# #?????????????????????????????? | | ???????????????# #?????????????????????????????? | | ???????????????# #?????????????????????????????? | | ???????????????# ??????????????????????????????? | | ???????????????+ ??????????????????????????????? | | ???????????????# ??????????????????????????????? | | ???????????????# ??????????????????????????????? | +----------------------------------------------------+ Best States ------------- Heat Dissipation 31 Energy Generation 15 Energy Capacity 250 Matter Stores 300 Matter Capacity 450 Sight Range 18 Robot Scan Range 15 Terrain Scan Density 10 Evasion (%) 55 Recoil Reduction 2 Item Schematics ----------------- Battle Cannon | -8/Materials | Scanalyzed Robot Schematics ------------------ None Fabricated ------------ Nothing Alien Tech Used ----------------- None Achievements -------------- None Challenges ------------ None Game ------ Seed ScatterPowerGreatsword Manual? 0 Play Time 00:13:43 Cumulative 4.5 hours Start 2024.04.14 @ 20:16:14 End 2024.04.14 @ 20:27:02 Sessions 1 Manual Loads 0 Difficulty Rogue Special Mode None Game No. 10 Rogue 10 Adventurer 0 Explorer 0 Win Type - Total 0 Types 0/0/0/0/0/0/0/0/0 Lore% 7 Gallery% 7 Achievement% 10 Wizard Run 0 Options --------- Layout 1 ASCII 0 Keyboard 1 Movement Arrows Keybinds 0 Fullscreen 1 Font 32/Tamsyn Map View 50x40 Zoom Use 0% Tactical HUD 1 Map Filters NONE Filters NONE Steam 0 RUN: 293a8744-0e1b-400e-a061-dba8a7e03651